[Event "Elite Hotels Open 2023"]
[Site "Elite Stadshotellet, Kungsgatan 6, Vaxjo, Sweden"]
[Date "2023.02.10"]
[Round "3.4"]
[White "Hillarp, Tiger"]
[Black "Ask, Josef"]
[Result "1-0"]
[TimeControl "15 minutes + 5 seconds per move from move one (Round 1 - 4) / 90 minutes + 30 seconds per move from move one (Round 5 - 8)"]
[WhiteTitle "GM"]
[BlackTitle "FM"]
[WhiteFideId "1700812"]
[BlackFideId "1704583"]
[WhiteElo "2511"]
[BlackElo "2169"]

1. d4 {[%clk 00:15:08]} {[%emt 00:00:03]} e6 {[%clk 00:15:06]} {[%emt
00:00:04]} 2. Nf3 {[%clk 00:14:59]} {[%emt 00:00:15]} f5 {[%clk 00:15:03]}
{[%emt 00:00:06]} 3. h3 {[%clk 00:15:00]} {[%emt 00:00:05]} Nf6 {[%clk
00:14:47]} {[%emt 00:00:21]} 4. g4 {[%clk 00:15:03]} {[%emt 00:00:02]} g6
{[%clk 00:14:34]} {[%emt 00:00:17]} 5. gxf5 {[%clk 00:14:59]} {[%emt 00:00:09]}
exf5 {[%clk 00:14:25]} {[%emt 00:00:15]} 6. Bg5 {[%clk 00:14:43]} {[%emt
00:00:21]} h6 {[%clk 00:14:06]} {[%emt 00:00:24]} 7. Bxf6 {[%clk 00:14:01]}
{[%emt 00:00:47]} Qxf6 {[%clk 00:14:09]} {[%emt 00:00:02]} 8. c3 {[%clk
00:13:52]} {[%emt 00:00:14]} Nc6 {[%clk 00:13:29]} {[%emt 00:00:45]} 9. h4
{[%clk 00:13:24]} {[%emt 00:00:33]} Bg7 {[%clk 00:12:54]} {[%emt 00:00:40]} 10.
Qb3 {[%clk 00:13:20]} {[%emt 00:00:09]} Ne7 {[%clk 00:12:43]} {[%emt 00:00:16]}
11. Nbd2 {[%clk 00:13:22]} {[%emt 00:00:03]} b6 {[%clk 00:12:32]} {[%emt
00:00:16]} 12. O-O-O {[%clk 00:12:21]} {[%emt 00:01:06]} Bb7 {[%clk 00:12:31]}
{[%emt 00:00:05]} 13. Bg2 {[%clk 00:12:22]} {[%emt 00:00:04]} O-O-O {[%clk
00:12:19]} {[%emt 00:00:17]} 14. Rdg1 {[%clk 00:12:22]} {[%emt 00:00:05]} d6
{[%clk 00:11:27]} {[%emt 00:00:58]} 15. Ne1 {[%clk 00:12:22]} {[%emt 00:00:04]}
c5 {[%clk 00:10:50]} {[%emt 00:00:42]} 16. e3 {[%clk 00:11:44]} {[%emt
00:00:44]} g5 {[%clk 00:10:25]} {[%emt 00:00:30]} 17. Nd3 {[%clk 00:11:12]}
{[%emt 00:00:37]} Bxg2 {[%clk 00:10:06]} {[%emt 00:00:24]} 18. Rxg2 {[%clk
00:11:15]} {[%emt 00:00:02]} Rd7 {[%clk 00:09:40]} {[%emt 00:00:30]} 19. a4
{[%clk 00:10:32]} {[%emt 00:00:49]} Rb7 {[%clk 00:09:09]} {[%emt 00:00:35]} 20.
hxg5 {[%clk 00:08:27]} {[%emt 00:02:10]} hxg5 {[%clk 00:09:13]} {[%emt
00:00:02]} 21. Rxh8+ {[%clk 00:08:31]} {[%emt 00:00:01]} Bxh8 {[%clk 00:09:16]}
{[%emt 00:00:01]} 22. Rh2 {[%clk 00:08:33]} {[%emt 00:00:03]} Bg7 {[%clk
00:09:07]} {[%emt 00:00:15]} 23. Kc2 {[%clk 00:05:55]} {[%emt 00:02:42]} Qg6
{[%clk 00:08:54]} {[%emt 00:00:19]} 24. Nf3 {[%clk 00:05:15]} {[%emt 00:00:44]}
Kc7 {[%clk 00:08:35]} {[%emt 00:00:24]} 25. Kd2 {[%clk 00:04:35]} {[%emt
00:00:45]} Bh6 {[%clk 00:07:37]} {[%emt 00:01:04]} 26. Qc4 {[%clk 00:03:32]}
{[%emt 00:01:08]} Qf6 {[%clk 00:06:35]} {[%emt 00:01:07]} 27. dxc5 {[%clk
00:03:16]} {[%emt 00:00:21]} bxc5 {[%clk 00:06:26]} {[%emt 00:00:14]} 28. b4
{[%clk 00:03:11]} {[%emt 00:00:09]} g4 {[%clk 00:05:48]} {[%emt 00:00:44]} 29.
Nd4 {[%clk 00:03:02]} {[%emt 00:00:14]} Kb8 {[%clk 00:05:36]} {[%emt 00:00:17]}
30. Qe6 {[%clk 00:02:19]} {[%emt 00:00:47]} Bg7 {[%clk 00:04:48]} {[%emt
00:00:53]} 31. bxc5 {[%clk 00:01:43]} {[%emt 00:00:41]} dxc5 {[%clk 00:04:39]}
{[%emt 00:00:14]} 32. Nxc5 {[%clk 00:01:10]} {[%emt 00:00:38]} Rb2+ {[%clk
00:04:28]} {[%emt 00:00:17]} 33. Ke1 {[%clk 00:00:53]} {[%emt 00:00:22]} g3
{[%clk 00:03:49]} {[%emt 00:00:45]} 34. Nd7+ {[%clk 00:00:55]} {[%emt
00:00:02]} Kc7 {[%clk 00:03:51]} {[%emt 00:00:04]} 35. Nxf6 {[%clk 00:00:56]}
{[%emt 00:00:03]} gxh2 {[%clk 00:03:55]} {[%emt 00:00:02]} 36. Qxe7+ {[%clk
00:00:52]} {[%emt 00:00:09]} Kc8 {[%clk 00:03:48]} {[%emt 00:00:11]} 37. Qd7+
{[%clk 00:00:53]} {[%emt 00:00:04]} Kb8 {[%clk 00:03:52]} {[%emt 00:00:01]} 38.
Nc6+ {[%clk 00:00:57]} {[%emt 00:00:01]} 1-0

[Event "Elite Hotels Open 2023"]
[Site "Elite Stadshotellet, Kungsgatan 6, Vaxjo, Sweden"]
[Date "2023.02.10"]
[Round "3.5"]
[White "Fransson, Patrick"]
[Black "Blomqvist, Erik"]
[Result "0-1"]
[TimeControl "15 minutes + 5 seconds per move from move one (Round 1 - 4) / 90 minutes + 30 seconds per move from move one (Round 5 - 8)"]
[BlackTitle "GM"]
[WhiteFideId "1709305"]
[BlackFideId "1709437"]
[WhiteElo "2126"]
[BlackElo "2510"]

1. d4 {[%clk 00:15:08]} {[%emt 00:00:02]} d5 {[%clk 00:14:57]} {[%emt
00:00:14]} 2. Bg5 {[%clk 00:15:03]} {[%emt 00:00:10]} f6 {[%clk 00:14:56]}
{[%emt 00:00:06]} 3. Bf4 {[%clk 00:15:07]} {[%emt 00:00:02]} Nc6 {[%clk
00:14:59]} {[%emt 00:00:02]} 4. Nf3 {[%clk 00:15:11]} {[%emt 00:00:01]} g5
{[%clk 00:15:00]} {[%emt 00:00:04]} 5. Bg3 {[%clk 00:14:46]} {[%emt 00:00:29]}
g4 {[%clk 00:14:59]} {[%emt 00:00:06]} 6. Nh4 {[%clk 00:14:02]} {[%emt
00:00:49]} f5 {[%clk 00:14:56]} {[%emt 00:00:08]} 7. e3 {[%clk 00:12:50]}
{[%emt 00:01:17]} e5 {[%clk 00:12:36]} {[%emt 00:02:26]} 8. dxe5 {[%clk
00:11:53]} {[%emt 00:01:01]} Be7 {[%clk 00:12:30]} {[%emt 00:00:10]} 9. h3
{[%clk 00:11:41]} {[%emt 00:00:16]} Bxh4 {[%clk 00:12:27]} {[%emt 00:00:09]} 10.
Bxh4 {[%clk 00:11:35]} {[%emt 00:00:11]} Qxh4 {[%clk 00:12:30]} {[%emt
00:00:02]} 11. Qxd5 {[%clk 00:11:37]} {[%emt 00:00:03]} Nge7 {[%clk 00:12:15]}
{[%emt 00:00:19]} 12. Qb3 {[%clk 00:09:48]} {[%emt 00:01:55]} Nxe5 {[%clk
00:12:03]} {[%emt 00:00:17]} 13. Nc3 {[%clk 00:09:47]} {[%emt 00:00:06]} c6
{[%clk 00:11:29]} {[%emt 00:00:39]} 14. O-O-O {[%clk 00:08:17]} {[%emt
00:01:36]} Qxf2 {[%clk 00:11:15]} {[%emt 00:00:19]} 15. Ne2 {[%clk 00:05:33]}
{[%emt 00:02:49]} Nd5 {[%clk 00:10:50]} {[%emt 00:00:29]} 16. Rxd5 {[%clk
00:04:11]} {[%emt 00:01:28]} cxd5 {[%clk 00:10:54]} {[%emt 00:00:01]} 17. Qc3
{[%clk 00:04:14]} {[%emt 00:00:01]} Be6 {[%clk 00:09:14]} {[%emt 00:01:45]} 18.
Nf4 {[%clk 00:04:06]} {[%emt 00:00:13]} Rc8 {[%clk 00:09:12]} {[%emt 00:00:07]}
19. Bb5+ {[%clk 00:04:03]} {[%emt 00:00:09]} Kf7 {[%clk 00:09:01]} {[%emt
00:00:15]} 20. Qb3 {[%clk 00:03:38]} {[%emt 00:00:30]} Rxc2+ {[%clk 00:09:01]}
{[%emt 00:00:05]} 21. Qxc2 {[%emt 00:00:10]} Rc8 {[%clk 00:09:01]} {[%emt
00:00:03]} 22. Qxc8 {[%clk 00:02:51]} {[%emt 00:00:50]} Qxe3+ {[%clk 00:08:44]}
{[%emt 00:00:21]} 23. Kb1 {[%clk 00:02:53]} {[%emt 00:00:04]} Bxc8 {[%clk
00:08:46]} {[%emt 00:00:03]} 0-1

[Event "Elite Hotels Open 2023"]
[Site "Elite Stadshotellet, Kungsgatan 6, Vaxjo, Sweden"]
[Date "2023.02.10"]
[Round "3.6"]
[White "Kucuksari, Kaan"]
[Black "Lindholm, Gustav"]
[Result "1-0"]
[TimeControl "15 minutes + 5 seconds per move from move one (Round 1 - 4) / 90 minutes + 30 seconds per move from move one (Round 5 - 8)"]
[WhiteTitle "IM"]
[WhiteFideId "6380166"]
[BlackFideId "1736515"]
[WhiteElo "2507"]
[BlackElo "2128"]

1. d4 {[%clk 00:15:09]} d5 {[%clk 00:15:09]} {[%emt 00:00:02]} 2. c4 {[%clk
00:15:11]} {[%emt 00:00:02]} c6 {[%clk 00:15:11]} {[%emt 00:00:03]} 3. Nf3
{[%clk 00:15:13]} {[%emt 00:00:04]} Nf6 {[%clk 00:15:14]} {[%emt 00:00:01]} 4.
Qc2 {[%clk 00:15:16]} {[%emt 00:00:02]} dxc4 {[%clk 00:15:17]} {[%emt
00:00:02]} 5. e4 {[%clk 00:15:07]} {[%emt 00:00:14]} b5 {[%clk 00:15:15]}
{[%emt 00:00:07]} 6. b3 {[%clk 00:15:08]} {[%emt 00:00:04]} cxb3 {[%clk
00:15:06]} {[%emt 00:00:13]} 7. axb3 {[%clk 00:15:11]} {[%emt 00:00:02]} e6
{[%clk 00:14:49]} {[%emt 00:00:22]} 8. Bd2 {[%clk 00:15:14]} {[%emt 00:00:03]}
a5 {[%clk 00:12:29]} {[%emt 00:02:25]} 9. Bd3 {[%clk 00:15:17]} {[%emt
00:00:02]} Be7 {[%clk 00:12:10]} {[%emt 00:00:23]} 10. O-O {[%clk 00:15:19]}
{[%emt 00:00:03]} h6 {[%clk 00:12:13]} {[%emt 00:00:02]} 11. Nc3 {[%clk
00:14:38]} {[%emt 00:00:46]} O-O {[%clk 00:11:58]} {[%emt 00:00:20]} 12. e5
{[%clk 00:14:40]} {[%emt 00:00:03]} Nd5 {[%clk 00:11:33]} {[%emt 00:00:30]} 13.
Nxd5 {[%emt 00:02:58]} exd5 {[%clk 00:11:08]} {[%emt 00:00:27]} 14. Qc1 {[%clk
00:11:40]} {[%emt 00:00:15]} f5 {[%clk 00:09:49]} {[%emt 00:01:24]} 15. exf6
{[%clk 00:10:22]} {[%emt 00:01:23]} Rxf6 {[%clk 00:09:06]} {[%emt 00:00:48]} 16.
Ne5 {[%clk 00:10:25]} {[%emt 00:00:02]} Qb6 {[%clk 00:06:57]} {[%emt 00:02:14]}
17. Qb2 {[%clk 00:08:03]} {[%emt 00:02:27]} Bf5 {[%clk 00:06:36]} {[%emt
00:00:25]} 18. Bxf5 {[%clk 00:08:05]} {[%emt 00:00:04]} Rxf5 {[%clk 00:06:40]}
{[%emt 00:00:01]} 19. Qc2 {[%clk 00:07:34]} {[%emt 00:00:37]} Rf6 {[%clk
00:06:09]} {[%emt 00:00:34]} 20. Ng4 {[%clk 00:07:33]} {[%emt 00:00:06]} Nd7
{[%clk 00:01:36]} {[%emt 00:04:39]} 21. Rfe1 {[%clk 00:07:36]} {[%emt
00:00:02]} Bd6 {[%clk 00:00:44]} {[%emt 00:00:57]} 22. Nxf6+ {[%clk 00:07:35]}
{[%emt 00:00:06]} Nxf6 {[%clk 00:00:47]} {[%emt 00:00:02]} 23. Be3 {[%clk
00:06:01]} {[%emt 00:01:39]} Ne4 {[%clk 00:00:44]} {[%emt 00:00:07]} 24. Rac1
{[%clk 00:05:55]} {[%emt 00:00:12]} Rc8 {[%clk 00:00:26]} {[%emt 00:00:22]} 25.
f3 {[%clk 00:05:58]} {[%emt 00:00:02]} Nf6 {[%clk 00:00:30]} {[%emt 00:00:02]}
26. Bf2 {[%clk 00:05:53]} {[%emt 00:00:10]} Qb8 {[%clk 00:00:25]} {[%emt
00:00:10]} 27. g3 {[%clk 00:05:55]} {[%emt 00:00:02]} Qc7 {[%clk 00:00:11]}
{[%emt 00:00:20]} 28. Kg2 {[%clk 00:05:43]} {[%emt 00:00:17]} Qd7 {[%clk
00:00:13]} {[%emt 00:00:02]} 29. Re2 {[%clk 00:05:45]} {[%emt 00:00:03]} Bb4
{[%clk 00:00:10]} {[%emt 00:00:09]} 30. Be3 {[%clk 00:05:40]} {[%emt 00:00:09]}
Bd6 {[%clk 00:00:06]} {[%emt 00:00:09]} 31. Bd2 {[%clk 00:05:38]} {[%emt
00:00:07]} Qd8 {[%clk 00:00:07]} {[%emt 00:00:05]} 32. Qg6 {[%clk 00:05:31]}
{[%emt 00:00:12]} Kh8 {[%clk 00:00:06]} {[%emt 00:00:06]} 33. Re6 {[%clk
00:05:21]} {[%emt 00:00:15]} Qf8 {[%clk 00:00:07]} {[%emt 00:00:04]} 34. Bxh6
{[%clk 00:05:17]} {[%emt 00:00:09]} 1-0

[Event "Elite Hotels Open 2023"]
[Site "Elite Stadshotellet, Kungsgatan 6, Vaxjo, Sweden"]
[Date "2023.02.10"]
[Round "3.7"]
[White "Strom-Engdahl, Alexander"]
[Black "Hector, Jonny"]
[Result "0-1"]
[TimeControl "15 minutes + 5 seconds per move from move one (Round 1 - 4) / 90 minutes + 30 seconds per move from move one (Round 5 - 8)"]
[BlackTitle "GM"]
[WhiteFideId "1741586"]
[BlackFideId "1700090"]
[WhiteElo "2097"]
[BlackElo "2466"]

1. d4 {[%clk 00:15:05]} {[%emt 00:00:04]} d5 {[%clk 00:15:08]} {[%emt
00:00:03]} 2. Bf4 {[%clk 00:15:08]} {[%emt 00:00:03]} c5 {[%clk 00:15:10]}
{[%emt 00:00:02]} 3. Nc3 {[%clk 00:15:04]} {[%emt 00:00:09]} Nc6 {[%clk
00:14:22]} {[%emt 00:00:53]} 4. e3 {[%clk 00:14:14]} {[%emt 00:00:55]} Bf5
{[%clk 00:13:32]} {[%emt 00:00:54]} 5. Nf3 {[%clk 00:13:48]} {[%emt 00:00:31]}
e6 {[%clk 00:13:31]} {[%emt 00:00:06]} 6. Bb5 {[%clk 00:12:34]} {[%emt
00:01:20]} Bd6 {[%clk 00:13:33]} {[%emt 00:00:03]} 7. dxc5 {[%clk 00:12:00]}
{[%emt 00:00:39]} Bxc5 {[%clk 00:13:11]} {[%emt 00:00:27]} 8. Nd4 {[%clk
00:11:26]} {[%emt 00:00:39]} Nge7 {[%clk 00:13:11]} {[%emt 00:00:04]} 9. Nxf5
{[%clk 00:10:23]} {[%emt 00:01:09]} Nxf5 {[%clk 00:13:13]} {[%emt 00:00:02]} 10.
O-O {[%clk 00:10:25]} {[%emt 00:00:04]} O-O {[%clk 00:13:09]} {[%emt 00:00:09]}
11. e4 {[%clk 00:09:48]} {[%emt 00:00:42]} dxe4 {[%clk 00:12:17]} {[%emt
00:00:57]} 12. Bxc6 {[%clk 00:09:17]} {[%emt 00:00:37]} bxc6 {[%clk 00:12:07]}
{[%emt 00:00:13]} 13. Qxd8 {[%clk 00:09:13]} {[%emt 00:00:10]} Rfxd8 {[%clk
00:12:01]} {[%emt 00:00:11]} 14. Nxe4 {[%clk 00:09:16]} {[%emt 00:00:02]} Bb6
{[%clk 00:11:41]} {[%emt 00:00:25]} 15. c3 {[%clk 00:08:14]} {[%emt 00:01:07]}
Rd5 {[%clk 00:11:16]} {[%emt 00:00:30]} 16. Rfe1 {[%clk 00:07:14]} {[%emt
00:01:05]} Rad8 {[%clk 00:10:58]} {[%emt 00:00:23]} 17. b4 {[%clk 00:06:59]}
{[%emt 00:00:21]} e5 {[%clk 00:10:18]} {[%emt 00:00:44]} 18. Bg3 {[%clk
00:06:06]} {[%emt 00:00:59]} f6 {[%clk 00:10:19]} {[%emt 00:00:02]} 19. Kf1
{[%clk 00:05:33]} {[%emt 00:00:39]} Rd3 {[%clk 00:09:42]} {[%emt 00:00:42]} 20.
Rac1 {[%clk 00:05:08]} {[%emt 00:00:30]} h5 {[%clk 00:09:35]} {[%emt 00:00:12]}
21. h3 {[%clk 00:04:45]} {[%emt 00:00:28]} h4 {[%clk 00:09:13]} {[%emt
00:00:27]} 22. Bh2 {[%clk 00:04:49]} {[%emt 00:00:02]} Kf7 {[%clk 00:08:32]}
{[%emt 00:00:45]} 23. Bg1 {[%clk 00:04:26]} {[%emt 00:00:28]} Ke6 {[%clk
00:08:24]} {[%emt 00:00:12]} 24. Ke2 {[%clk 00:03:45]} {[%emt 00:00:48]} Ne7
{[%clk 00:07:40]} {[%emt 00:00:47]} 25. c4 {[%clk 00:03:22]} {[%emt 00:00:30]}
Ra3 {[%clk 00:07:30]} {[%emt 00:00:15]} 26. Rc2 {[%clk 00:03:16]} {[%emt
00:00:10]} Nf5 {[%clk 00:07:32]} {[%emt 00:00:03]} 27. Rb2 {[%clk 00:03:04]}
{[%emt 00:00:17]} Bd4 {[%clk 00:06:41]} {[%emt 00:00:56]} 28. Rc2 {[%clk
00:03:06]} {[%emt 00:00:04]} Rb8 {[%clk 00:06:42]} {[%emt 00:00:04]} 29. Rb1
{[%clk 00:03:01]} {[%emt 00:00:09]} Ra4 {[%clk 00:05:55]} {[%emt 00:00:51]} 30.
b5 {[%clk 00:02:50]} {[%emt 00:00:17]} cxb5 {[%clk 00:05:45]} {[%emt 00:00:16]}
31. cxb5 {[%clk 00:02:45]} {[%emt 00:00:09]} Ra5 {[%clk 00:05:47]} {[%emt
00:00:03]} 32. Nc5+ {[%clk 00:01:56]} {[%emt 00:00:55]} Kf7 {[%clk 00:05:29]}
{[%emt 00:00:22]} 33. a4 {[%clk 00:01:45]} {[%emt 00:00:17]} Bxc5 {[%clk
00:05:11]} {[%emt 00:00:22]} 34. Rxc5 {[%clk 00:01:49]} Rxa4 {[%clk 00:05:02]}
{[%emt 00:00:15]} 35. Rb2 {[%clk 00:01:35]} {[%emt 00:00:20]} Nd4+ {[%clk
00:04:42]} {[%emt 00:00:23]} 36. Kd3 {[%clk 00:01:28]} {[%emt 00:00:13]} Ra1
{[%clk 00:04:39]} {[%emt 00:00:08]} 37. Bh2 {[%clk 00:01:27]} {[%emt 00:00:05]}
Ne6 {[%clk 00:03:48]} {[%emt 00:00:56]} 38. Rc6 {[%clk 00:00:48]} {[%emt
00:00:45]} Rh1 {[%clk 00:03:34]} {[%emt 00:00:18]} 39. f3 {[%clk 00:00:38]}
{[%emt 00:00:15]} Rxh2 {[%clk 00:03:34]} {[%emt 00:00:05]} 40. Rc1 {[%clk
00:00:32]} {[%emt 00:00:12]} Rb7 {[%clk 00:03:19]} {[%emt 00:00:19]} 41. Ke3
{[%clk 00:00:18]} {[%emt 00:00:19]} Nf4 {[%clk 00:03:19]} {[%emt 00:00:05]} 42.
Rg1 {[%clk 00:00:11]} {[%emt 00:00:12]} Nxh3 {[%clk 00:03:16]} {[%emt
00:00:08]} 43. Rgb1 {[%clk 00:00:07]} {[%emt 00:00:10]} Nf4 {[%clk 00:03:17]}
{[%emt 00:00:03]} 0-1

[Event "Elite Hotels Open 2023"]
[Site "Elite Stadshotellet, Kungsgatan 6, Vaxjo, Sweden"]
[Date "2023.02.10"]
[Round "3.8"]
[White "Grahn, Vidar"]
[Black "Trost, Edvin"]
[Result "0-1"]
[TimeControl "15 minutes + 5 seconds per move from move one (Round 1 - 4) / 90 minutes + 30 seconds per move from move one (Round 5 - 8)"]
[BlackTitle "FM"]
[WhiteFideId "1744780"]
[BlackFideId "1729519"]
[WhiteElo "2059"]
[BlackElo "2364"]

1. e4 {[%clk 00:15:01]} {[%emt 00:00:09]} c5 {[%clk 00:13:56]} {[%emt
00:01:12]} 2. Nf3 {[%clk 00:15:03]} {[%emt 00:00:06]} d6 {[%clk 00:13:58]}
{[%emt 00:00:02]} 3. d4 {[%clk 00:15:06]} {[%emt 00:00:02]} cxd4 {[%clk
00:14:02]} {[%emt 00:00:02]} 4. Nxd4 {[%clk 00:15:10]} {[%emt 00:00:01]} Nf6
{[%clk 00:14:06]} 5. Nc3 {[%clk 00:15:14]} {[%emt 00:00:01]} Nc6 {[%clk
00:14:10]} {[%emt 00:00:01]} 6. Bg5 {[%clk 00:13:57]} {[%emt 00:01:21]} Bd7
{[%clk 00:14:11]} {[%emt 00:00:05]} 7. Qd2 {[%clk 00:13:11]} {[%emt 00:00:50]}
h6 {[%clk 00:14:15]} 8. Bxf6 {[%clk 00:12:42]} {[%emt 00:00:34]} gxf6 {[%clk
00:14:18]} {[%emt 00:00:02]} 9. O-O-O {[%clk 00:12:39]} {[%emt 00:00:07]} Nxd4
{[%clk 00:14:14]} {[%emt 00:00:11]} 10. Qxd4 {[%clk 00:12:41]} {[%emt
00:00:03]} Qa5 {[%clk 00:14:15]} {[%emt 00:00:03]} 11. Kb1 {[%clk 00:12:34]}
{[%emt 00:00:12]} Rc8 {[%clk 00:14:19]} 12. Nd5 {[%clk 00:11:57]} {[%emt
00:00:43]} Qc5 {[%clk 00:14:13]} {[%emt 00:00:10]} 13. Qxc5 {[%clk 00:11:36]}
{[%emt 00:00:26]} Rxc5 {[%clk 00:14:16]} {[%emt 00:00:02]} 14. Be2 {[%clk
00:11:19]} {[%emt 00:00:22]} Bg7 {[%clk 00:14:10]} {[%emt 00:00:11]} 15. g4
{[%clk 00:10:47]} {[%emt 00:00:36]} h5 {[%clk 00:13:44]} {[%emt 00:00:33]} 16.
gxh5 {[%clk 00:10:17]} {[%emt 00:00:35]} f5 {[%clk 00:11:44]} {[%emt 00:02:05]}
17. Rhg1 {[%clk 00:10:09]} {[%emt 00:00:12]} Bh6 {[%clk 00:11:47]} {[%emt
00:00:02]} 18. f3 {[%clk 00:08:43]} {[%emt 00:01:31]} Kf8 {[%clk 00:07:06]}
{[%emt 00:04:46]} 19. c4 {[%clk 00:06:50]} {[%emt 00:01:58]} Be6 {[%clk
00:03:05]} {[%emt 00:04:07]} 20. Rg3 {[%clk 00:03:56]} {[%emt 00:02:58]} f4
{[%clk 00:01:33]} {[%emt 00:01:37]} 21. Rgg1 {[%clk 00:03:48]} {[%emt
00:00:12]} f6 {[%clk 00:01:31]} {[%emt 00:00:08]} 22. h4 {[%clk 00:03:33]}
{[%emt 00:00:19]} Bf7 {[%clk 00:00:38]} {[%emt 00:01:00]} 23. b4 {[%clk
00:02:57]} {[%emt 00:00:40]} Rc8 {[%clk 00:00:38]} {[%emt 00:00:05]} 24. a4
{[%clk 00:02:21]} {[%emt 00:00:41]} Bxh5 {[%clk 00:00:37]} {[%emt 00:00:07]} 25.
b5 {[%clk 00:02:08]} {[%emt 00:00:18]} Kf7 {[%clk 00:00:11]} {[%emt 00:00:31]}
26. Kb2 {[%clk 00:01:52]} {[%emt 00:00:20]} Rhg8 {[%clk 00:00:15]} {[%emt
00:00:02]} 27. Kb3 {[%clk 00:01:18]} {[%emt 00:00:39]} Rg3 {[%clk 00:00:18]}
{[%emt 00:00:01]} 28. Rxg3 {[%clk 00:00:58]} {[%emt 00:00:26]} fxg3 {[%clk
00:00:22]} 29. Rg1 {[%clk 00:01:02]} Rg8 {[%clk 00:00:25]} {[%emt 00:00:03]} 30.
a5 {[%clk 00:00:47]} {[%emt 00:00:20]} g2 {[%clk 00:00:19]} {[%emt 00:00:10]}
31. c5 {[%clk 00:00:28]} {[%emt 00:00:24]} e6 {[%clk 00:00:16]} {[%emt
00:00:08]} 32. Bc4 {[%clk 00:00:32]} {[%emt 00:00:01]} dxc5 {[%clk 00:00:06]}
{[%emt 00:00:15]} 33. Nc7 {[%clk 00:00:27]} {[%emt 00:00:11]} Rg3 {[%clk
00:00:10]} {[%emt 00:00:01]} 34. Bxe6+ {[%clk 00:00:09]} {[%emt 00:00:23]} Kf8
{[%clk 00:00:11]} {[%emt 00:00:04]} 35. Bh3 {[%emt 00:00:09]} Rxf3+ {[%clk
00:00:12]} {[%emt 00:00:02]} 36. Kc4 {[%clk 00:00:11]} {[%emt 00:00:01]} Rxh3
{[%clk 00:00:13]} {[%emt 00:00:04]} 37. Rxg2 {[%clk 00:00:15]} Rxh4 {[%clk
00:00:11]} {[%emt 00:00:07]} 38. Kxc5 {[%clk 00:00:10]} {[%emt 00:00:09]} Rxe4
{[%clk 00:00:14]} {[%emt 00:00:02]} 39. Rf2 {[%clk 00:00:13]} {[%emt 00:00:03]}
Be3+ {[%clk 00:00:16]} {[%emt 00:00:02]} 0-1

[Event "Elite Hotels Open 2023"]
[Site "Elite Stadshotellet, Kungsgatan 6, Vaxjo, Sweden"]
[Date "2023.02.10"]
[Round "3.9"]
[White "Golubka, Petro"]
[Black "Eriksson, Christian Altenburg"]
[Result "1-0"]
[TimeControl "15 minutes + 5 seconds per move from move one (Round 1 - 4) / 90 minutes + 30 seconds per move from move one (Round 5 - 8)"]
[WhiteTitle "GM"]
[WhiteFideId "14114224"]
[BlackFideId "1412159"]
[WhiteElo "2363"]
[BlackElo "2104"]

1. e4 {[%clk 00:14:43]} {[%emt 00:00:27]} c5 {[%clk 00:15:08]} {[%emt
00:00:02]} 2. b3 {[%clk 00:14:41]} {[%emt 00:00:08]} e5 {[%clk 00:13:42]}
{[%emt 00:01:30]} 3. Bb2 {[%clk 00:14:37]} {[%emt 00:00:07]} d6 {[%clk
00:13:42]} {[%emt 00:00:06]} 4. f4 {[%clk 00:14:37]} {[%emt 00:00:06]} Nc6
{[%clk 00:13:10]} {[%emt 00:00:37]} 5. Nf3 {[%clk 00:14:33]} {[%emt 00:00:08]}
exf4 {[%clk 00:12:42]} {[%emt 00:00:33]} 6. Bb5 {[%clk 00:14:31]} {[%emt
00:00:07]} Bd7 {[%clk 00:11:28]} {[%emt 00:01:20]} 7. Nc3 {[%clk 00:14:17]}
{[%emt 00:00:18]} Nf6 {[%clk 00:10:11]} {[%emt 00:01:22]} 8. Qe2 {[%clk
00:13:54]} {[%emt 00:00:28]} Ne5 {[%clk 00:08:53]} {[%emt 00:01:23]} 9. O-O-O
{[%clk 00:13:45]} {[%emt 00:00:15]} Be7 {[%clk 00:07:50]} {[%emt 00:01:08]} 10.
d4 {[%clk 00:13:04]} {[%emt 00:00:46]} Nxf3 {[%clk 00:06:58]} {[%emt 00:00:57]}
11. Qxf3 {[%clk 00:12:20]} {[%emt 00:00:49]} cxd4 {[%clk 00:05:48]} {[%emt
00:01:16]} 12. Rxd4 {[%clk 00:12:16]} {[%emt 00:00:09]} O-O {[%clk 00:05:06]}
{[%emt 00:00:46]} 13. e5 {[%clk 00:11:44]} {[%emt 00:00:37]} dxe5 {[%clk
00:04:01]} {[%emt 00:01:10]} 14. Rxd7 {[%clk 00:11:44]} {[%emt 00:00:05]} Nxd7
{[%clk 00:03:44]} {[%emt 00:00:22]} 15. Rd1 {[%clk 00:11:42]} {[%emt 00:00:06]}
Qa5 {[%clk 00:02:57]} {[%emt 00:00:53]} 16. Rxd7 {[%clk 00:11:32]} {[%emt
00:00:14]} Bb4 {[%clk 00:02:52]} {[%emt 00:00:11]} 17. a4 {[%clk 00:11:00]}
{[%emt 00:00:36]} a6 {[%clk 00:02:16]} {[%emt 00:00:41]} 18. Bc4 {[%clk
00:10:44]} {[%emt 00:00:21]} b5 {[%clk 00:02:05]} {[%emt 00:00:17]} 19. Bxf7+
{[%clk 00:10:32]} {[%emt 00:00:17]} Kh8 {[%clk 00:02:07]} {[%emt 00:00:02]} 20.
Nd5 {[%clk 00:08:55]} {[%emt 00:01:43]} bxa4 {[%clk 00:01:40]} {[%emt
00:00:33]} 21. Bxe5 {[%clk 00:08:10]} {[%emt 00:00:50]} Ba3+ {[%clk 00:01:12]}
{[%emt 00:00:33]} 22. Kd1 {[%clk 00:07:40]} {[%emt 00:00:33]} axb3 {[%clk
00:00:36]} {[%emt 00:00:42]} 23. Bg6 {[%clk 00:04:48]} {[%emt 00:02:57]} 1-0